[Event "Early-Titled-Tuesday-Blitz-May-14-2024"]
[Site "Chess.com"]
[Date "2024.05.14"]
[Round "11"]
[White "JaloliddinIlkhomi"]
[Black "Zq1"]
[Result "1-0"]
[WhiteElo "2749"]
[BlackElo "2612"]
[TimeControl "180+1"]
[EndTime "10:09:34 PDT"]
[Termination "JaloliddinIlkhomi won on time"]

1. Nf3 {[%clk 0:03:00.9]} 1... Nf6 {[%clk 0:02:58.6]} 2. d4 {[%clk 0:02:59.8]}
2... e6 {[%clk 0:02:54.4]} 3. Bf4 {[%clk 0:03:00]} 3... b6 {[%clk 0:02:53.8]} 4.
e3 {[%clk 0:02:59.7]} 4... Bb7 {[%clk 0:02:54]} 5. Nbd2 {[%clk 0:03:00.3]} 5...
Be7 {[%clk 0:02:54.2]} 6. h3 {[%clk 0:03:00]} 6... O-O {[%clk 0:02:54]} 7. Bd3
{[%clk 0:03:00.6]} 7... c5 {[%clk 0:02:53]} 8. c3 {[%clk 0:03:00.4]} 8... cxd4
{[%clk 0:02:53.1]} 9. exd4 {[%clk 0:03:01.3]} 9... d6 {[%clk 0:02:53.1]} 10. Qe2
{[%clk 0:03:01]} 10... a6 {[%clk 0:02:52.9]} 11. a4 {[%clk 0:02:57]} 11... Nbd7
{[%clk 0:02:52.6]} 12. O-O {[%clk 0:02:42.1]} 12... Re8 {[%clk 0:02:51.9]} 13.
Ne4 {[%clk 0:02:31.6]} 13... Nxe4 {[%clk 0:02:49.4]} 14. Bxe4 {[%clk 0:02:32.5]}
14... Bxe4 {[%clk 0:02:48.6]} 15. Qxe4 {[%clk 0:02:33.4]} 15... Nf6 {[%clk
0:02:47.5]} 16. Qd3 {[%clk 0:02:32.9]} 16... Qd7 {[%clk 0:02:41.9]} 17. Rfe1
{[%clk 0:02:32.2]} 17... b5 {[%clk 0:02:40.4]} 18. axb5 {[%clk 0:02:28.6]} 18...
axb5 {[%clk 0:02:39.7]} 19. Nd2 {[%clk 0:02:28.8]} 19... Qb7 {[%clk 0:02:33.4]}
20. Bg5 {[%clk 0:02:25.5]} 20... b4 {[%clk 0:02:19.4]} 21. c4 {[%clk 0:02:09.3]}
21... d5 {[%clk 0:02:08.6]} 22. Bxf6 {[%clk 0:01:59.1]} 22... Rxa1 {[%clk
0:01:51.2]} 23. Rxa1 {[%clk 0:01:57.8]} 23... dxc4 {[%clk 0:01:35.9]} 24. Nxc4
{[%clk 0:01:57.5]} 24... gxf6 {[%clk 0:01:33.6]} 25. Qg3+ {[%clk 0:01:36.4]}
25... Kh8 {[%clk 0:01:33.3]} 26. Nd6 {[%clk 0:01:36.3]} 26... Bxd6 {[%clk
0:01:25.8]} 27. Qxd6 {[%clk 0:01:37.2]} 27... Rg8 {[%clk 0:01:20.6]} 28. d5
{[%clk 0:01:21.9]} 28... Qxd5 {[%clk 0:01:14]} 29. Qxd5 {[%clk 0:01:22.3]} 29...
exd5 {[%clk 0:01:13.6]} 30. Rd1 {[%clk 0:01:23]} 30... Rc8 {[%clk 0:01:07.7]}
31. Rd4 {[%clk 0:01:17.9]} 31... Rc4 {[%clk 0:01:05.4]} 32. Rd2 {[%clk
0:00:56.2]} 32... Kg7 {[%clk 0:01:04.1]} 33. Kh2 {[%clk 0:00:56.5]} 33... h5
{[%clk 0:00:59.2]} 34. Kg3 {[%clk 0:00:54.4]} 34... h4+ {[%clk 0:00:58.5]} 35.
Kf3 {[%clk 0:00:54.6]} 35... Kg6 {[%clk 0:00:51.7]} 36. Rxd5 {[%clk 0:00:53.4]}
36... Rc2 {[%clk 0:00:48]} 37. Rd4 {[%clk 0:00:53.9]} 37... Rxb2 {[%clk
0:00:46.6]} 38. Rxh4 {[%clk 0:00:54.3]} 38... Rb3+ {[%clk 0:00:43.9]} 39. Kf4
{[%clk 0:00:49.3]} 39... Rc3 {[%clk 0:00:31.8]} 40. Rg4+ {[%clk 0:00:23.2]}
40... Kh7 {[%clk 0:00:31]} 41. Kf5 {[%clk 0:00:23.3]} 41... Rc2 {[%clk
0:00:19.8]} 42. f3 {[%clk 0:00:20.2]} 42... b3 {[%clk 0:00:15.2]} 43. Rb4 {[%clk
0:00:18.8]} 43... Rxg2 {[%clk 0:00:12.5]} 44. Kxf6 {[%clk 0:00:16.5]} 44... Rg3
{[%clk 0:00:12]} 45. Rxb3 {[%clk 0:00:14.4]} 45... Rxh3 {[%clk 0:00:11.8]} 46.
Kxf7 {[%clk 0:00:14.9]} 46... Rh4 {[%clk 0:00:11.8]} 47. Rb6 {[%clk 0:00:13.2]}
47... Rf4+ {[%clk 0:00:08.1]} 48. Rf6 {[%clk 0:00:13.8]} 48... Ra4 {[%clk
0:00:07.9]} 49. Re6 {[%clk 0:00:13.6]} 49... Rf4+ {[%clk 0:00:06.2]} 50. Rf6
{[%clk 0:00:14.2]} 50... Ra4 {[%clk 0:00:06.3]} 51. Rf5 {[%clk 0:00:14.7]} 51...
Kh6 {[%clk 0:00:05.4]} 52. f4 {[%clk 0:00:14.3]} 52... Ra7+ {[%clk 0:00:04.9]}
53. Kf8 {[%clk 0:00:14.8]} 53... Ra8+ {[%clk 0:00:04.9]} 54. Ke7 {[%clk
0:00:15]} 54... Ra7+ {[%clk 0:00:05.2]} 55. Kf8 {[%clk 0:00:13.4]} 55... Ra8+
{[%clk 0:00:05.3]} 56. Kf7 {[%clk 0:00:13.9]} 56... Ra7+ {[%clk 0:00:05.6]} 57.
Ke6 {[%clk 0:00:14.5]} 57... Ra6+ {[%clk 0:00:05.9]} 58. Ke5 {[%clk 0:00:15.2]}
58... Ra5+ {[%clk 0:00:06]} 59. Ke4 {[%clk 0:00:15.9]} 59... Ra4+ {[%clk
0:00:06.3]} 60. Kf3 {[%clk 0:00:16.6]} 60... Kg6 {[%clk 0:00:06.5]} 61. Rc5
{[%clk 0:00:16.3]} 61... Kf6 {[%clk 0:00:06.3]} 62. Rc6+ {[%clk 0:00:15.9]}
62... Kf5 {[%clk 0:00:05]} 63. Rc5+ {[%clk 0:00:16.6]} 63... Kf6 {[%clk
0:00:05.3]} 64. Kg4 {[%clk 0:00:17.5]} 64... Ra1 {[%clk 0:00:04.6]} 65. Rc6+
{[%clk 0:00:17.5]} 65... Kf7 {[%clk 0:00:04.9]} 66. Kg5 {[%clk 0:00:18]} 66...
Ra5+ {[%clk 0:00:03.5]} 67. f5 {[%clk 0:00:18.3]} 67... Ra1 {[%clk 0:00:02]} 68.
Rc7+ {[%clk 0:00:18.8]} 68... Kf8 {[%clk 0:00:01.9]} 69. Kg6 {[%clk 0:00:19.7]}
69... Rg1+ {[%clk 0:00:00.7]} 70. Kf6 {[%clk 0:00:20.2]} 70... Kg8 {[%clk
0:00:00.5]} 71. Rc8+ {[%clk 0:00:19.5]} 71... Kh7 {[%clk 0:00:00.8]} 72. Kf7
{[%clk 0:00:20.4]} 72... Rf1 {[%clk 0:00:00.3]} 73. f6 {[%clk 0:00:20.6]} 73...
Re1 {[%clk 0:00:00.2]} 74. Rc4 {[%clk 0:00:18.3]} 74... Rh1 {[%clk 0:00:00.8]}
75. Rg4 {[%clk 0:00:15.1]} 75... Rh2 {[%clk 0:00:00.5]} 76. Kf8 {[%clk
0:00:14.5]} 76... Rh3 {[%clk 0:00:00.8]} 77. f7 {[%clk 0:00:14.1]} 77... Rh1
{[%clk 0:00:01.1]} 78. Rg7+ {[%clk 0:00:11.5]} 1-0

[Event "Early-Titled-Tuesday-Blitz-May-14-2024"]
[Site "Chess.com"]
[Date "2024.05.14"]
[Round "11"]
[White "urano56"]
[Black "Nikita_Klepikov"]
[Result "0-1"]
[WhiteElo "2418"]
[BlackElo "2330"]
[TimeControl "180+1"]
[EndTime "10:09:40 PDT"]
[Termination "Nikita_Klepikov won by resignation"]

1. e4 {[%clk 0:01:53.7]} 1... c5 {[%clk 0:02:58.8]} 2. Nf3 {[%clk 0:01:53.3]}
2... Nc6 {[%clk 0:02:59.4]} 3. d4 {[%clk 0:01:54]} 3... cxd4 {[%clk 0:03:00.3]}
4. Nxd4 {[%clk 0:01:54.9]} 4... g6 {[%clk 0:03:01]} 5. Nc3 {[%clk 0:01:55.2]}
5... Bg7 {[%clk 0:03:01.6]} 6. Be3 {[%clk 0:01:55]} 6... Nf6 {[%clk 0:03:01.8]}
7. Be2 {[%clk 0:01:55.3]} 7... O-O {[%clk 0:03:01]} 8. f4 {[%clk 0:01:53.9]}
8... d6 {[%clk 0:03:01.2]} 9. g4 {[%clk 0:01:51.8]} 9... Nxd4 {[%clk 0:02:37.1]}
10. Bxd4 {[%clk 0:01:51.6]} 10... e5 {[%clk 0:02:37.2]} 11. Be3 {[%clk
0:01:38.4]} 11... Nxg4 {[%clk 0:01:45.6]} 12. Bxg4 {[%clk 0:01:30.6]} 12... Qh4+
{[%clk 0:01:45.9]} 13. Bf2 {[%clk 0:01:30.4]} 13... Qxg4 {[%clk 0:01:46.3]} 14.
Qxg4 {[%clk 0:01:30.8]} 14... Bxg4 {[%clk 0:01:47]} 15. Rg1 {[%clk 0:01:29.8]}
15... Bh5 {[%clk 0:01:40.5]} 16. f5 {[%clk 0:01:19.2]} 16... Rfc8 {[%clk
0:01:18.4]} 17. Be3 {[%clk 0:01:01]} 17... Rc6 {[%clk 0:01:11.5]} 18. Kd2 {[%clk
0:00:59.7]} 18... f6 {[%clk 0:01:04.6]} 19. Nd5 {[%clk 0:00:55.8]} 19... Kf7
{[%clk 0:01:04.6]} 20. Raf1 {[%clk 0:00:52.5]} 20... Rac8 {[%clk 0:00:58.3]} 21.
c3 {[%clk 0:00:51.5]} 21... g5 {[%clk 0:00:21.2]} 22. Rg3 {[%clk 0:00:51]} 22...
Kf8 {[%clk 0:00:18.7]} 23. Rh3 {[%clk 0:00:50.9]} 23... Bg4 {[%clk 0:00:12]} 24.
Rxh7 {[%clk 0:00:42.1]} 24... Kg8 {[%clk 0:00:12.2]} 25. Rxg7+ {[%clk
0:00:42.6]} 25... Kxg7 {[%clk 0:00:11]} 26. Ne7 {[%clk 0:00:43.5]} 26... a6
{[%clk 0:00:08]} 27. Nxc8 {[%clk 0:00:42.8]} 27... Rxc8 {[%clk 0:00:08]} 28. h4
{[%clk 0:00:43.1]} 28... Kh6 {[%clk 0:00:05.3]} 29. hxg5+ {[%clk 0:00:42.7]}
29... fxg5 {[%clk 0:00:04.5]} 30. Rg1 {[%clk 0:00:41.8]} 30... Bf3 {[%clk
0:00:03]} 31. Rxg5 {[%clk 0:00:39.5]} 31... Kh7 {[%clk 0:00:01.6]} 32. f6 {[%clk
0:00:35.9]} 32... Bxe4 {[%clk 0:00:01.4]} 33. Rg7+ {[%clk 0:00:35.6]} 33... Kh8
{[%clk 0:00:01.7]} 34. Bg5 {[%clk 0:00:32.2]} 34... Rg8 {[%clk 0:00:01.4]} 35.
f7 {[%clk 0:00:27.9]} 35... Kxg7 {[%clk 0:00:01.2]} 36. fxg8=Q+ {[%clk
0:00:24.7]} 36... Kxg8 {[%clk 0:00:02.1]} 37. Be7 {[%clk 0:00:24.6]} 37... d5
{[%clk 0:00:02]} 38. Bf6 {[%clk 0:00:24.4]} 38... Kf7 {[%clk 0:00:01.6]} 39.
Bxe5 {[%clk 0:00:24.4]} 39... Ke6 {[%clk 0:00:02.2]} 40. Bg7 {[%clk 0:00:24]}
40... Bb1 {[%clk 0:00:02.5]} 41. a4 {[%clk 0:00:20.4]} 41... Ba2 {[%clk
0:00:03.1]} 42. Ke3 {[%clk 0:00:19.7]} 42... a5 {[%clk 0:00:03.4]} 43. Bd4
{[%clk 0:00:17.4]} 43... Bb3 {[%clk 0:00:03.3]} 44. Bb6 {[%clk 0:00:17.8]} 44...
Bxa4 {[%clk 0:00:04]} 45. Bxa5 {[%clk 0:00:18.7]} 45... Bb5 {[%clk 0:00:04.4]}
46. Kd4 {[%clk 0:00:18.7]} 46... Bc6 {[%clk 0:00:04.7]} 47. Kc5 {[%clk 0:00:19]}
47... Ke5 {[%clk 0:00:04.5]} 48. b4 {[%clk 0:00:16.5]} 48... Ke4 {[%clk
0:00:04.2]} 49. b5 {[%clk 0:00:16.2]} 49... Bd7 {[%clk 0:00:04.3]} 50. Kb6
{[%clk 0:00:16.5]} 50... Kd3 {[%clk 0:00:04.4]} 51. Kc5 {[%clk 0:00:10.8]} 51...
Be8 {[%clk 0:00:04.6]} 52. Bb4 {[%clk 0:00:11.1]} 52... Kc2 {[%clk 0:00:04.5]}
53. Ba5 {[%clk 0:00:07]} 53... Kb3 {[%clk 0:00:04.5]} 54. Bb4 {[%clk 0:00:07.4]}
54... Ka4 {[%clk 0:00:04.6]} 55. b6 {[%clk 0:00:07.2]} 55... Bc6 {[%clk
0:00:05.2]} 56. Kd6 {[%clk 0:00:07.5]} 56... Kb3 {[%clk 0:00:05.6]} 57. Kc7
{[%clk 0:00:08]} 57... Kc4 {[%clk 0:00:06.1]} 58. Kd6 {[%clk 0:00:07.7]} 58...
d4 {[%clk 0:00:06.6]} 59. cxd4 {[%clk 0:00:06.4]} 59... Kxb4 {[%clk 0:00:06.7]}
60. d5 {[%clk 0:00:06.9]} 60... Bxd5 {[%clk 0:00:06]} 61. Kxd5 {[%clk
0:00:05.6]} 61... Kb5 {[%clk 0:00:06.6]} 62. Kd4 {[%clk 0:00:05.8]} 62... Kxb6
{[%clk 0:00:07.5]} 63. Kc4 {[%clk 0:00:06.4]} 63... Kc6 {[%clk 0:00:08.1]} 64.
Kb4 {[%clk 0:00:07.1]} 64... Kb6 {[%clk 0:00:08]} 65. Kc4 {[%clk 0:00:07.5]}
65... Ka5 {[%clk 0:00:08.6]} 66. Kb3 {[%clk 0:00:07.6]} 66... Kb5 {[%clk
0:00:09.1]} 67. Kc3 {[%clk 0:00:07.3]} 67... Ka4 {[%clk 0:00:09.5]} 68. Kc4
{[%clk 0:00:07.5]} 68... b5+ {[%clk 0:00:09.2]} 69. Kc3 {[%clk 0:00:08.2]} 69...
Ka3 {[%clk 0:00:09.8]} 70. Kc2 {[%clk 0:00:08.8]} 70... b4 {[%clk 0:00:10]} 71.
Kc1 {[%clk 0:00:08.3]} 71... Ka2 {[%clk 0:00:10]} 72. Kc2 {[%clk 0:00:08.6]}
72... b3+ {[%clk 0:00:10.5]} 73. Kc3 {[%clk 0:00:08.2]} 73... b2 {[%clk
0:00:10.5]} 74. Kd4 {[%clk 0:00:08.9]} 0-1

[Event "Early-Titled-Tuesday-Blitz-May-14-2024"]
[Site "Chess.com"]
[Date "2024.05.14"]
[Round "11"]
[White "bubeliang"]
[Black "Artemiki"]
[Result "1/2-1/2"]
[WhiteElo "2808"]
[BlackElo "2622"]
[TimeControl "180+1"]
[EndTime "10:09:48 PDT"]
[Termination "Game drawn by repetition"]

1. b3 {[%clk 0:00:01.7]} 1... Nf6 {[%clk 0:02:57.6]} 2. Bb2 {[%clk 0:00:02.6]}
2... e6 {[%clk 0:02:57.3]} 3. e3 {[%clk 0:00:03.5]} 3... Be7 {[%clk 0:02:57.8]}
4. Nf3 {[%clk 0:00:03.8]} 4... O-O {[%clk 0:02:58.5]} 5. Be2 {[%clk 0:00:04.5]}
5... d5 {[%clk 0:02:57.2]} 6. O-O {[%clk 0:00:05.2]} 6... c5 {[%clk 0:02:57.8]}
7. d4 {[%clk 0:00:05.5]} 7... Nc6 {[%clk 0:02:56.8]} 8. c4 {[%clk 0:00:05.5]}
8... b6 {[%clk 0:02:54.6]} 9. Ne5 {[%clk 0:00:05.1]} 9... Bb7 {[%clk 0:02:52.2]}
10. Bf3 {[%clk 0:00:05.4]} 10... Nxe5 {[%clk 0:02:37.8]} 11. dxe5 {[%clk
0:00:05.4]} 11... Ne4 {[%clk 0:02:38.5]} 12. Bxe4 {[%clk 0:00:03.5]} 12... dxe4
{[%clk 0:02:39.4]} 13. Nc3 {[%clk 0:00:03.7]} 13... Qb8 {[%clk 0:02:13.9]} 14.
Nb5 {[%clk 0:00:03.1]} 14... Rd8 {[%clk 0:02:11.9]} 15. Qg4 {[%clk 0:00:02.3]}
15... g6 {[%clk 0:01:40.8]} 16. Rad1 {[%clk 0:00:01.3]} 16... h5 {[%clk
0:01:26.6]} 17. Qg3 {[%clk 0:00:01.7]} 17... h4 {[%clk 0:00:24.7]} 18. Qg4
{[%clk 0:00:01.8]} 18... Rd3 {[%clk 0:00:12.1]} 19. Nd6 {[%clk 0:00:02.1]} 19...
Bxd6 {[%clk 0:00:11.1]} 20. exd6 {[%clk 0:00:03]} 20... Qxd6 {[%clk 0:00:09.6]}
21. Qxh4 {[%clk 0:00:03.6]} 21... e5 {[%clk 0:00:10]} 22. Rde1 {[%clk
0:00:03.2]} 22... Re8 {[%clk 0:00:08.9]} 23. Ba1 {[%clk 0:00:03.7]} 23... Qe7
{[%clk 0:00:08.1]} 24. Qg3 {[%clk 0:00:03.7]} 24... Kg7 {[%clk 0:00:05.9]} 25.
h4 {[%clk 0:00:04.3]} 25... f6 {[%clk 0:00:05.3]} 26. h5 {[%clk 0:00:04.7]}
26... g5 {[%clk 0:00:06]} 27. Qh3 {[%clk 0:00:03.6]} 27... Qe6 {[%clk
0:00:04.8]} 28. g4 {[%clk 0:00:03.3]} 28... Bc8 {[%clk 0:00:03.1]} 29. Kg2
{[%clk 0:00:04]} 29... Qxg4+ {[%clk 0:00:02.9]} 30. Qxg4 {[%clk 0:00:04.9]}
30... Bxg4 {[%clk 0:00:03.2]} 31. Kg3 {[%clk 0:00:05.8]} 31... Bxh5 {[%clk
0:00:02.9]} 32. Rh1 {[%clk 0:00:06.3]} 32... Bg6 {[%clk 0:00:03]} 33. Rh2 {[%clk
0:00:06.6]} 33... Rd2 {[%clk 0:00:03.2]} 34. a4 {[%clk 0:00:05.4]} 34... Ra2
{[%clk 0:00:02.9]} 35. Rb1 {[%clk 0:00:03.3]} 35... Rd2 {[%clk 0:00:02.7]} 36.
Bc3 {[%clk 0:00:03.8]} 36... Rd3 {[%clk 0:00:02.6]} 37. Rc1 {[%clk 0:00:04.4]}
37... Red8 {[%clk 0:00:03.1]} 38. a5 {[%clk 0:00:04.6]} 38... R8d7 {[%clk
0:00:03.2]} 39. Rhh1 {[%clk 0:00:03.1]} 39... Bf5 {[%clk 0:00:03.3]} 40. Kg2
{[%clk 0:00:02.7]} 40... Bg4 {[%clk 0:00:03.5]} 41. Kg3 {[%clk 0:00:03.4]} 41...
Bf5 {[%clk 0:00:04]} 42. Rhg1 {[%clk 0:00:03.7]} 42... Bg6 {[%clk 0:00:04.4]}
43. axb6 {[%clk 0:00:04.3]} 43... axb6 {[%clk 0:00:04.2]} 44. b4 {[%clk
0:00:05.2]} 44... Bf5 {[%clk 0:00:02.8]} 45. bxc5 {[%clk 0:00:04.7]} 45... bxc5
{[%clk 0:00:03.7]} 46. Ba5 {[%clk 0:00:05.3]} 46... Be6 {[%clk 0:00:04]} 47. Bb6
{[%clk 0:00:05.5]} 47... Rb3 {[%clk 0:00:03]} 48. Bxc5 {[%clk 0:00:05.7]} 48...
Rb2 {[%clk 0:00:03.6]} 49. Ba3 {[%clk 0:00:04.8]} 49... Ra2 {[%clk 0:00:04.1]}
50. Bb4 {[%clk 0:00:05.3]} 50... Rb2 {[%clk 0:00:04]} 51. Bc3 {[%clk 0:00:05.8]}
51... Ra2 {[%clk 0:00:04]} 52. c5 {[%clk 0:00:06.4]} 52... Bc4 {[%clk
0:00:03.4]} 53. Bb4 {[%clk 0:00:06.5]} 53... Bb5 {[%clk 0:00:04]} 54. Rgd1
{[%clk 0:00:06.8]} 54... Rxd1 {[%clk 0:00:03.8]} 55. Rxd1 {[%clk 0:00:07.7]}
55... Rc2 {[%clk 0:00:04.2]} 56. Rd6 {[%clk 0:00:07.2]} 56... f5 {[%clk
0:00:03.5]} 57. Rd5 {[%clk 0:00:06.5]} 57... f4+ {[%clk 0:00:03.7]} 58. Kg4
{[%clk 0:00:07.1]} 58... Rxf2 {[%clk 0:00:03.4]} 59. Rxe5 {[%clk 0:00:07.6]}
59... fxe3 {[%clk 0:00:03]} 60. Rxg5+ {[%clk 0:00:08]} 60... Kf7 {[%clk
0:00:02.7]} 61. Re5 {[%clk 0:00:07.2]} 61... Bc6 {[%clk 0:00:02.9]} 62. Rf5+
{[%clk 0:00:05.1]} 62... Rxf5 {[%clk 0:00:02.6]} 63. Kxf5 {[%clk 0:00:06]} 63...
e2 {[%clk 0:00:03.2]} 64. Ke5 {[%clk 0:00:06.4]} 64... Ke7 {[%clk 0:00:02.9]}
65. Be1 {[%clk 0:00:07.3]} 65... Kd7 {[%clk 0:00:03.2]} 66. Bh4 {[%clk
0:00:07.9]} 66... Bb7 {[%clk 0:00:03.5]} 67. Kd4 {[%clk 0:00:08.6]} 67... Bc6
{[%clk 0:00:04.1]} 68. Be1 {[%clk 0:00:08.9]} 68... Ke6 {[%clk 0:00:04.5]} 69.
Ke3 {[%clk 0:00:08.5]} 69... Bb5 {[%clk 0:00:03.9]} 70. Kxe4 {[%clk 0:00:08.4]}
70... Bc6+ {[%clk 0:00:03.9]} 71. Kd4 {[%clk 0:00:09.3]} 71... Bb5 {[%clk
0:00:04.3]} 72. Bd2 {[%clk 0:00:09.6]} 72... Kd7 {[%clk 0:00:04.7]} 73. Kd5
{[%clk 0:00:10]} 73... Bc6+ {[%clk 0:00:04.7]} 74. Ke5 {[%clk 0:00:10.7]} 74...
Bb5 {[%clk 0:00:05.1]} 75. Be1 {[%clk 0:00:11.6]} 75... Kc6 {[%clk 0:00:05.7]}
76. Kd4 {[%clk 0:00:12.5]} 76... Ba6 {[%clk 0:00:04.4]} 77. Bf2 {[%clk
0:00:12.9]} 77... Bb5 {[%clk 0:00:05]} 78. Kc3 {[%clk 0:00:13.4]} 78... Ba6
{[%clk 0:00:05.7]} 79. Kb4 {[%clk 0:00:14]} 79... Bb5 {[%clk 0:00:06.3]} 80. Be1
{[%clk 0:00:14]} 80... Ba6 {[%clk 0:00:06.6]} 81. Kc3 {[%clk 0:00:14.2]} 81...
Bb5 {[%clk 0:00:07.2]} 82. Kd4 {[%clk 0:00:15.1]} 82... Ba6 {[%clk 0:00:07.6]}
83. Ba5 {[%clk 0:00:14.7]} 83... Bb5 {[%clk 0:00:07.3]} 84. Ke3 {[%clk
0:00:15.3]} 84... Ba6 {[%clk 0:00:07.4]} 85. Kf2 {[%clk 0:00:15.5]} 85... Bb5
{[%clk 0:00:08.1]} 86. Bb6 {[%clk 0:00:16.2]} 86... Ba6 {[%clk 0:00:08.6]} 87.
Ke1 {[%clk 0:00:17.1]} 87... Bb5 {[%clk 0:00:09.2]} 88. Kd2 {[%clk 0:00:18]}
88... Ba6 {[%clk 0:00:09.8]} 89. Ke1 {[%clk 0:00:18]} 89... Bb5 {[%clk
0:00:10.3]} 90. Kd2 {[%clk 0:00:18.9]} 90... Ba6 {[%clk 0:00:10.9]} 91. Ke1
{[%clk 0:00:19.2]} 1/2-1/2

[Event "Early-Titled-Tuesday-Blitz-May-14-2024"]
[Site "Chess.com"]
[Date "2024.05.14"]
[Round "11"]
[White "Mikhail_Bryakin"]
[Black "Sanyura"]
[Result "0-1"]
[WhiteElo "2861"]
[BlackElo "2661"]
[TimeControl "180+1"]
[EndTime "10:09:54 PDT"]
[Termination "Sanyura won by resignation"]

1. Nf3 {[%clk 0:00:10.4]} 1... d5 {[%clk 0:00:11.2]} 2. e3 {[%clk 0:00:11.3]}
2... c6 {[%clk 0:00:11.3]} 3. b3 {[%clk 0:00:11.8]} 3... Bg4 {[%clk 0:00:11.9]}
4. Bb2 {[%clk 0:00:12.4]} 4... Nd7 {[%clk 0:00:12.4]} 5. Be2 {[%clk 0:00:13]}
5... Ngf6 {[%clk 0:00:12.9]} 6. O-O {[%clk 0:00:13.6]} 6... g6 {[%clk
0:00:13.2]} 7. h3 {[%clk 0:00:14.1]} 7... Bxf3 {[%clk 0:00:13.2]} 8. Bxf3 {[%clk
0:00:14.5]} 8... Bg7 {[%clk 0:00:13.6]} 9. d3 {[%clk 0:00:15.1]} 9... O-O {[%clk
0:00:13.6]} 10. Nd2 {[%clk 0:00:15.7]} 10... e5 {[%clk 0:00:13.9]} 11. e4 {[%clk
0:00:15.8]} 11... Re8 {[%clk 0:00:11]} 12. a4 {[%clk 0:00:15.9]} 12... a6 {[%clk
0:00:08.7]} 13. g3 {[%clk 0:00:16.5]} 13... b5 {[%clk 0:00:09]} 14. Bg2 {[%clk
0:00:16.9]} 14... bxa4 {[%clk 0:00:09.1]} 15. Rxa4 {[%clk 0:00:16.4]} 15... Nc5
{[%clk 0:00:09.8]} 16. Ra1 {[%clk 0:00:15.5]} 16... dxe4 {[%clk 0:00:10.2]} 17.
Nxe4 {[%clk 0:00:16]} 17... Nfxe4 {[%clk 0:00:10.4]} 18. dxe4 {[%clk 0:00:16.7]}
18... Qb6 {[%clk 0:00:10.2]} 19. Qe2 {[%clk 0:00:16.9]} 19... Red8 {[%clk
0:00:10.4]} 20. Rfd1 {[%clk 0:00:17]} 20... Ne6 {[%clk 0:00:11.1]} 21. Qc4
{[%clk 0:00:15.5]} 21... Nd4 {[%clk 0:00:10.7]} 22. Kh2 {[%clk 0:00:10.4]} 22...
h5 {[%clk 0:00:08.4]} 23. h4 {[%clk 0:00:09.8]} 23... Ne6 {[%clk 0:00:06.7]} 24.
Rd3 {[%clk 0:00:09.6]} 24... Rxd3 {[%clk 0:00:06.4]} 25. Qxd3 {[%clk 0:00:09.7]}
25... Qxf2 {[%clk 0:00:06.9]} 26. Rf1 {[%clk 0:00:10]} 26... Qc5 {[%clk
0:00:06.9]} 27. Qd7 {[%clk 0:00:09.7]} 27... Ra7 {[%clk 0:00:06.9]} 28. Qd3
{[%clk 0:00:09.5]} 28... Qe7 {[%clk 0:00:04.6]} 29. Rd1 {[%clk 0:00:08.9]} 29...
a5 {[%clk 0:00:04.9]} 30. Bh3 {[%clk 0:00:07.6]} 30... Nd4 {[%clk 0:00:04.9]}
31. Bg2 {[%clk 0:00:04.9]} 31... a4 {[%clk 0:00:04.9]} 32. bxa4 {[%clk
0:00:04.5]} 32... Rxa4 {[%clk 0:00:05.5]} 33. c3 {[%clk 0:00:05]} 33... Ne6
{[%clk 0:00:04]} 34. Qc2 {[%clk 0:00:04.7]} 34... Ra2 {[%clk 0:00:04.1]} 35. Qb3
{[%clk 0:00:05.2]} 35... Qa7 {[%clk 0:00:03.8]} 36. Rd2 {[%clk 0:00:03.4]} 36...
Nc5 {[%clk 0:00:04.3]} 37. Qc4 {[%clk 0:00:03.4]} 37... Kh7 {[%clk 0:00:04.4]}
38. Bf3 {[%clk 0:00:02.8]} 38... Ne6 {[%clk 0:00:04.5]} 39. Kg2 {[%clk
0:00:02.8]} 39... Qe3 {[%clk 0:00:03.7]} 40. Re2 {[%clk 0:00:03.4]} 40... Qa7
{[%clk 0:00:03.3]} 41. Bc1 {[%clk 0:00:03.5]} 41... Rxe2+ {[%clk 0:00:03.4]} 42.
Qxe2 {[%clk 0:00:04.4]} 42... Qa1 {[%clk 0:00:03.3]} 43. Qd2 {[%clk 0:00:04.6]}
43... Nc5 {[%clk 0:00:03]} 44. Qb2 {[%clk 0:00:04.9]} 44... Qa4 {[%clk
0:00:02.4]} 45. Qe2 {[%clk 0:00:03.5]} 45... Nb3 {[%clk 0:00:02.7]} 46. Qc2
{[%clk 0:00:02.8]} 46... Qc4 {[%clk 0:00:02.3]} 47. Be3 {[%clk 0:00:02.6]} 47...
Nd4 {[%clk 0:00:01.7]} 48. Qd2 {[%clk 0:00:02]} 48... Nxf3 {[%clk 0:00:01.9]}
49. Kxf3 {[%clk 0:00:02.9]} 49... Qf1+ {[%clk 0:00:02.3]} 50. Qf2 {[%clk
0:00:03.6]} 50... Qh1+ {[%clk 0:00:02.8]} 51. Qg2 {[%clk 0:00:04]} 51... Qb1
{[%clk 0:00:02.9]} 52. Qe2 {[%clk 0:00:04.7]} 52... Qh1+ {[%clk 0:00:02.5]} 53.
Qg2 {[%clk 0:00:04.9]} 53... Qd1+ {[%clk 0:00:03.1]} 54. Qe2 {[%clk 0:00:05.2]}
54... Qd7 {[%clk 0:00:03.5]} 55. Kf2 {[%clk 0:00:04.2]} 55... f5 {[%clk
0:00:04.1]} 56. exf5 {[%clk 0:00:04.1]} 56... Qxf5+ {[%clk 0:00:04.2]} 57. Qf3
{[%clk 0:00:04.7]} 57... Qc2+ {[%clk 0:00:04.6]} 58. Qe2 {[%clk 0:00:04.2]}
58... Qxc3 {[%clk 0:00:05]} 59. Kg2 {[%clk 0:00:04.2]} 59... e4 {[%clk
0:00:05.3]} 60. Bf4 {[%clk 0:00:03.9]} 60... Qd3 {[%clk 0:00:04.8]} 61. Qa2
{[%clk 0:00:04.2]} 61... c5 {[%clk 0:00:04.9]} 62. Qf7 {[%clk 0:00:04.7]} 62...
e3 {[%clk 0:00:05]} 63. Qe6 {[%clk 0:00:03.6]} 63... e2 {[%clk 0:00:04.5]} 64.
Qe7 {[%clk 0:00:01.4]} 64... Qd5+ {[%clk 0:00:03.5]} 65. Kf2 {[%clk 0:00:01.5]}
65... Qd1 {[%clk 0:00:03.7]} 66. Qxe2 {[%clk 0:00:01.1]} 66... Bd4+ {[%clk
0:00:02.1]} 67. Kf3 {[%clk 0:00:01.6]} 67... Qxe2+ {[%clk 0:00:02.2]} 68. Kxe2
{[%clk 0:00:01.9]} 68... Kg7 {[%clk 0:00:02.3]} 69. Kd3 {[%clk 0:00:02.5]} 69...
Kf6 {[%clk 0:00:02.7]} 70. Ke4 {[%clk 0:00:03.2]} 70... Ke6 {[%clk 0:00:03]} 71.
Bb8 {[%clk 0:00:03.3]} 71... Bf6 {[%clk 0:00:03]} 72. Bf4 {[%clk 0:00:03.1]}
72... Be7 {[%clk 0:00:02.7]} 73. Be3 {[%clk 0:00:02.7]} 73... Bd6 {[%clk
0:00:03]} 74. Bf2 {[%clk 0:00:03.4]} 74... Bc7 {[%clk 0:00:01.6]} 75. Be1 {[%clk
0:00:03.6]} 75... c4 {[%clk 0:00:02]} 76. Kd4 {[%clk 0:00:04]} 76... Kf5 {[%clk
0:00:02.7]} 77. Kxc4 {[%clk 0:00:03.4]} 77... Kg4 {[%clk 0:00:03.3]} 78. Kd5
{[%clk 0:00:04]} 78... Bxg3 {[%clk 0:00:03.9]} 79. Ba5 {[%clk 0:00:04.5]} 79...
Bxh4 {[%clk 0:00:04.4]} 80. Ke4 {[%clk 0:00:05.4]} 80... g5 {[%clk 0:00:05.1]}
81. Ke3 {[%clk 0:00:06]} 81... Bg3 {[%clk 0:00:05.2]} 82. Ke2 {[%clk 0:00:06.9]}
82... Kh3 {[%clk 0:00:05.8]} 83. Kf1 {[%clk 0:00:07.8]} 83... g4 {[%clk
0:00:06.2]} 84. Bd8 {[%clk 0:00:07.8]} 84... Bh2 {[%clk 0:00:06.2]} 85. Ke2
{[%clk 0:00:05.7]} 85... g3 {[%clk 0:00:06.6]} 86. Bb6 {[%clk 0:00:05.4]} 86...
g2 {[%clk 0:00:07.1]} 87. Kf2 {[%clk 0:00:05.5]} 87... g1=Q+ {[%clk 0:00:06.9]}
0-1